bitfinex-derivatives/quotes_SOLF0:USTF0_20250823
["timestamp","ask_amount","ask_price","bid_price","bid_amount"]
[1755924136836,2.72,203.05,202.87,138.24]
[1755924137237,2.72,203.14,202.91,10.30025192]
[1755924139042,2.72,203.14,202.87,138.24]
[1755924139043,2.72,203.14,202.97,10.30025192]
[1755924139443,2.72,203.14,202.95,22.94]
[1755924139642,2.72,203.14,202.92,10.30025192]
[1755924139844,2.72,203.14,202.93,29.96]
[1755924140046,2.72,203.14,202.9,331.56]
[1755924140342,7.6449,203.14,202.91,138.22]
[1755924140542,7.6449,203.14,202.9,331.56]
[1755924140743,7.6449,203.14,202.91,138.22]
[1755924141348,2.72,203.11,202.9,331.56]
[1755924141546,2.72,203.11,202.91,138.18]
[1755924142541,2.72,203.11,202.8,3.92344104]
[1755924142747,2.72,203.11,202.86,10.30025192]
[1755924142942,2.72,203.11,202.87,4.49853954]
[1755924143139,2.72,203.11,202.86,10.30025192]
[1755924143441,2.72,203.11,202.87,142.65739226]
[1755924143648,7.6457,203.11,202.87,138.16]
[1755924143844,4.9257,203.11,202.88,4.49538246]
[1755924144048,2.72,203.1,202.87,138.16]
[1755924144851,2.72,203.1,202.88,142.63262781]
[1755924145037,2.72,203.1,202.88,138.14]
[1755924145644,4.9259,203.1,202.88,138.14]
[1755924145843,24.6258,203.13,202.86,10.30025192]
[1755924145844,2.72,203.09,202.86,10.30025192]
[1755924146252,2.72,203.07,202.86,10.30025192]
[1755924147344,10.30025192,203.16,202.91,10.30025192]
[1755924147549,2.72,203.12,202.91,10.30025192]
[1755924149254,2.72,203.11,202.91,10.30025192]
[1755924149954,2.72,203.09,202.87,138.08]
[1755924150453,2.72,203.09,202.91,10.30025192]
[1755924151352,2.72,203.09,202.92,138.08]
[1755924151545,2.72,203.09,202.91,10.30025192]
[1755924151748,2.72,203.09,202.92,138.08]
[1755924151945,2.72,203.09,202.91,10.30025192]
[1755924152148,2.72,203.09,202.86,341.58025192]
[1755924152750,2.72,203.09,202.86,10.30025192]
[1755924152952,2.72,203.04,202.82,138.06]
[1755924153154,2.72,203.04,202.79,331.26]
[1755924153345,2.68,202.98,202.77,10.30025192]
[1755924153547,2.68,202.98,202.77,148.36025192]
[1755924153746,2.68,203.04,202.83,10.30025192]
[1755924153951,2.68,203.04,202.88,10.30025192]
[1755924155157,2.68,203.04,202.85,138.06]
[1755924155452,24.6278,203.12,202.74,331.26]
[1755924155453,2.68,203.12,202.95,10.30025192]
[1755924155661,4.9264,203.08,202.95,10.30025192]
[1755924155854,2.68,203.07,202.95,10.30025192]
[1755924156051,2.68,203.07,202.95,7.80025192]
[1755924157159,2.68,203.07,202.81,139.5]
[1755924157358,2.68,203.07,202.93,10.30025192]
[1755924158462,2.68,203.04,202.75,3.91781641]
[1755924158654,2.68,203.04,202.88,10.30025192]
[1755924159857,2.68,203.1,202.99,10.30025192]
[1755924160362,2.68,203.1,202.94,10.30025192]
[1755924161463,2.68,203.15,202.94,10.30025192]
[1755924162762,4.9252,203.13,202.94,10.30025192]
[1755924162961,2.68,203.15,202.94,10.30025192]
[1755924164458,2.68,203.11,202.96,6.57446995]
[1755924167064,2.68,203.11,202.96,4.07446995]
[1755924168564,2.68,203.08,202.9,6.57446995]
[1755924169061,2.68,203.07,202.9,6.57446995]
[1755924169668,7.6066,203.07,202.9,6.57446995]
[1755924169871,2.68,203.07,202.9,6.57446995]
[1755924170970,4.9268,203.06,202.9,6.57446995]
[1755924171165,2.68,203.07,202.9,6.57446995]
[1755924171369,2.68,203.07,202.91,4.48740948]
[1755924171566,2.68,203.07,202.92,4.48740948]
[1755924171769,2.68,203.07,202.9,6.57446995]
[1755924171969,2.68,203.07,202.91,4.48719057]
[1755924172267,2.68,203.05,202.88,6.57446995]
[1755924172471,2.68,203.02,202.84,6.57446995]
[1755924172673,2.68,202.98,202.85,4.49411521]
[1755924172873,2.68,202.89,202.74,6.57446995]
[1755924173068,2.68,202.89,202.75,4.50582453]
[1755924173272,2.68,202.89,202.72,6.57446995]
[1755924173469,2.68,202.89,202.73,4.50641545]
[1755924173674,2.68,202.89,202.74,4.50641545]
[1755924173973,2.68,202.89,202.75,4.50641545]
[1755924174174,2.68,202.89,202.76,4.5098864]
[1755924174376,2.68,202.89,202.69,10.32551187]
[1755924174566,2.68,202.89,202.7,13.06357207]
[1755924174771,2.68,202.89,202.71,13.06357207]
[1755924174969,2.68,202.89,202.72,4.51017454]
[1755924175168,2.68,202.89,202.73,4.51017454]
[1755924175373,2.68,202.89,202.74,4.51017454]
[1755924175573,2.68,202.99,202.75,152.98162239]
[1755924175878,2.68,202.99,202.76,14.90130113]
[1755924176178,2.68,202.99,202.77,14.90130113]
[1755924176371,2.68,202.96,202.78,9.06838945]
[1755924176568,10.32551187,202.97,202.68,10.32551187]
[1755924176569,2.68,202.88,202.68,10.32551187]
[1755924176774,2.68,202.88,202.77,24.6691]
[1755924176977,2.68,202.96,202.78,4.51370334]
[1755924177178,2.68,202.96,202.79,4.51370334]
[1755924177381,2.68,202.94,202.8,4.51274276]
[1755924177581,2.68,202.94,202.83,4.9323]
[1755924177771,2.68,202.94,202.76,24.6704]
[1755924177977,2.68,202.94,202.77,4.51265081]
[1755924178179,2.68,202.94,202.78,4.51265081]
[1755924178483,2.68,202.92,202.72,24.6749]
[1755924178781,2.68,202.92,202.73,4.51606917]
[1755924178975,2.68,202.92,202.74,4.51606917]
[1755924179177,10.32551187,202.87,202.67,24.6814]
[1755924179381,2.68,202.86,202.68,4.51703253]
[1755924179582,2.68,202.86,202.69,4.51703253]
[1755924179778,2.68,202.86,202.7,4.51703253]
[1755924179978,2.68,202.86,202.71,4.51703253]
[1755924180177,2.68,202.86,202.6,14.26005812]
[1755924180178,13.00551187,202.82,202.61,24.6879]
[1755924180480,2.68,202.81,202.62,14.94352647]
[1755924180680,2.68,202.81,202.63,9.09344372]
[1755924181077,2.68,202.81,202.64,4.57123485]
[1755924181277,2.68,202.81,202.65,4.52086144]
[1755924181473,4.9331,202.8,202.69,4.9357]
[1755924181677,2.68,202.81,202.7,4.51861934]
[1755924181874,331.32,202.89,202.71,4.51861934]
[1755924182080,2.68,202.86,202.72,4.51861934]
[1755924182274,2.68,202.86,202.69,24.679]
[1755924182475,2.68,202.86,202.7,9.07367068]
[1755924182684,2.68,202.86,202.74,24.6728]
[1755924182878,2.68,202.86,202.75,4.51251888]
[1755924183181,2.68,202.86,202.74,24.6728]
[1755924183783,2.68,202.86,202.77,4.9336]
[1755924184083,2.68,202.86,202.75,24.6717]
[1755924184286,2.84,202.92,202.76,4.50678103]
[1755924184483,2.84,202.92,202.75,24.6717]
[1755924184484,2.84,202.92,202.77,4.50678103]
[1755924184685,2.84,202.92,202.81,4.9328]
[1755924185285,10.32551187,202.98,202.81,4.9328]
[1755924185286,2.84,203.03,202.92,4.9301]
[1755924185487,2.84,203.03,202.83,138.18]
[1755924185685,2.84,203.03,202.91,24.652]
[1755924186582,2.84,203.03,202.95,4.9293]
[1755924186983,4.9286,202.99,202.86,4.9316]
[1755924187180,2.84,202.98,202.86,2.4316]
[1755924188088,2.84,202.98,202.88,4.9311]
[1755924189688,2.84,203.0,202.79,24.6668]
[1755924189987,2.84,203.0,202.77,22.1693]
[1755924190380,2.84,203.0,202.81,10.32551187]
[1755924190582,2.84,203.0,202.82,142.92040498]
[1755924190784,2.84,203.05,202.91,24.6514]
[1755924191488,2.84,203.05,202.97,4.9289]
[1755924192084,2.84,203.05,202.94,24.6485]
[1755924192493,0.85738571,203.09,202.98,4.9285]
[1755924192790,2.84,203.11,202.96,24.6459]
[1755924193388,2.84,203.11,203.02,4.9277]
[1755924194088,2.84,203.11,202.99,4.9284]
[1755924194483,2.84,203.11,203.0,24.6413]
[1755924194790,469.9,203.15,203.0,24.6413]
[1755924194991,2.84,203.24,203.09,4.9259]
[1755924195290,0.85674192,203.21,203.09,4.9259]
[1755924195991,2.84,203.24,203.12,4.9252]
[1755924196291,0.85674192,203.21,203.02,24.6379]
[1755924196492,2.84,203.2,203.02,24.6379]
[1755924197286,2.84,203.2,203.01,10.32551187]
[1755924198593,138.36,203.23,203.01,10.32551187]
[1755924198891,7.7624,203.25,203.01,10.32551187]
[1755924199290,4.9228,203.23,203.01,10.32551187]
[1755924199488,332.21671028,203.26,203.01,10.32551187]
[1755924199489,2.84,203.22,203.01,10.32551187]
[1755924199894,2.84,203.25,203.06,10.32551187]
[1755924200487,3.69667865,203.25,203.06,10.32551187]
[1755924201489,2.84,203.24,203.06,10.32551187]
[1755924201888,0.85667865,203.25,202.89,246.5464]
[1755924201889,2.84,203.22,202.99,10.32551187]
[1755924203293,2.84,203.2,203.07,4.9265]
[1755924203700,2.84,203.2,203.04,24.6364]
[1755924203999,2.84,203.2,203.09,4.926]
[1755924204299,2.84,203.2,203.09,3.616]
[1755924204596,2.84,203.2,203.09,2.426]
[1755924205101,2.84,203.2,203.09,24.6303]
[1755924206301,2.84,203.24,203.13,4.925]
[1755924207902,2.84,203.24,203.09,24.6303]
[1755924208903,2.84,203.24,203.12,24.6263]
[1755924209608,7.84,203.3,203.15,6.56681768]
[1755924210211,5.0,203.3,203.25,4.9221]
[1755924210404,2.84,203.29,203.16,24.6211]
[1755924210802,2.84,203.29,203.19,4.9235]
[1755924211305,2.84,203.29,203.13,31.19151768]
[1755924211510,2.84,203.29,203.14,24.6241]
[1755924211706,2.84,203.29,203.15,24.6231]
[1755924211909,5.0,203.3,203.17,6.56681768]
[1755924212099,5.0,203.3,203.23,4.9225]
[1755924212303,5.0,203.3,203.17,6.56681768]
[1755924212709,5.0,203.3,203.18,24.619]
[1755924213010,5.0,203.3,203.21,6.56681768]
[1755924213204,5.0,203.3,203.23,24.6131]
[1755924214208,5.0,203.3,203.27,4.9216]
[1755924214408,2.75,203.49,203.24,331.5]
[1755924214606,2.75,203.49,203.34,11.48661768]
[1755924215007,2.75,203.49,203.32,4.52681768]
[1755924215203,7.6666,203.49,203.35,4.9196]
[1755924215814,2.75,203.46,203.32,4.9204]
[1755924216113,2.75,203.46,203.27,6.56681768]
[1755924216315,4.918,203.43,203.28,4.9212]
[1755924216614,2.75,203.42,203.28,4.9212]
[1755924218015,2.75,203.42,203.31,4.9206]
[1755924218216,2.75,203.42,203.24,24.612]
[1755924218411,2.75,203.42,203.22,8.34387152]
[1755924218616,7.6687,203.4,203.25,29.533]
[1755924219118,7.6687,203.4,203.25,24.6109]
[1755924219320,7.6687,203.4,203.27,4.9215]
[1755924219613,2.75,203.37,203.18,24.6188]
[1755924219812,2.75,203.37,203.19,1.94031545]
[1755924220013,2.75,203.37,203.18,24.6188]
[1755924220612,2.75,203.37,203.24,4.9223]
[1755924220918,141.51,203.45,203.22,10.84387152]
[1755924221112,138.64,203.44,203.3,4.9208]
[1755924221317,138.64,203.44,203.28,24.6068]
[1755924222021,138.64,203.44,203.36,4.9194]
[1755924222216,138.64,203.44,203.28,24.6068]
[1755924222720,138.64,203.44,203.3,24.6049]
[1755924223322,334.52570965,203.5,203.34,24.5991]
[1755924223522,10.84387152,203.59,203.32,10.84387152]
[1755924223523,2.75,203.59,203.32,10.84387152]
[1755924223721,2.75,203.59,203.37,10.84387152]
[1755924224022,0.85537312,203.57,203.42,24.5905]
[1755924224622,0.85537312,203.57,203.44,29.5054]
[1755924224819,0.85537312,203.57,203.44,4.9175]
[1755924225420,5.76987312,203.57,203.44,4.9175]
[1755924225616,2.75,203.56,203.35,24.5983]
[1755924225812,2.75,203.56,203.36,24.5977]
[1755924226013,2.75,203.56,203.43,4.9177]
[1755924226423,2.75,203.56,203.43,24.5886]
[1755924226621,2.75,203.56,203.45,4.9172]
[1755924227220,2.75,203.59,203.44,24.5879]
[1755924227825,2.75,203.59,203.48,4.9165]
[1755924228217,2.75,203.68,203.47,10.84387152]
[1755924228526,2.75,203.68,203.48,24.5825]
[1755924228824,2.75,203.68,203.47,10.84387152]
[1755924229127,2.75,203.68,203.54,29.491]
[1755924230324,2.75,203.68,203.56,4.9145]
[1755924230621,0.85483732,203.72,203.52,10.84387152]
[1755924230826,2.75,203.71,203.51,4.9158]
[1755924231031,4.9115,203.7,203.5,24.5807]
[1755924231231,2.75,203.69,203.54,4.9152]
[1755924231424,2.75,203.69,203.54,2.4152]
[1755924231925,4.9118,203.68,203.54,2.4152]
[1755924232322,2.75,203.69,203.54,26.9909]
[1755924233124,7.6617,203.69,203.54,2.4152]
[1755924233323,2.75,203.68,203.51,4.9158]
[1755924233623,2.75,203.67,203.47,22.0835]
[1755924234020,2.75,203.67,203.55,4.9147]
[1755924234923,2.75,203.67,203.57,4.9143]
[1755924235324,2.75,203.67,203.57,2.4143]
[1755924236020,138.6,203.7,203.57,2.4143]
[1755924236219,138.6,203.7,203.54,29.4909]
[1755924236524,2.75,203.69,203.54,24.5759]
[1755924236730,138.6,203.7,203.54,24.5759]
[1755924237332,138.6,203.7,203.61,4.9134]
[1755924238429,138.6,203.7,203.63,4.9129]
[1755924239032,2.75,203.75,203.65,4.9124]
[1755924239636,2.75,203.75,203.62,4.9132]
[1755924239835,2.75,203.75,203.62,24.5663]
[1755924240227,2.75,203.75,203.57,35.41597152]
[1755924240427,2.75,203.75,203.58,22.0711]
[1755924240833,2.75,203.75,203.58,24.5704]
[1755924241531,2.75,203.75,203.57,35.41597152]
[1755924241532,0.85449099,203.77,203.57,10.84387152]
[1755924241733,2.75,203.81,203.58,15.22126327]
[1755924241927,0.85439658,203.81,203.6,24.5677]
[1755924242131,2.75,203.77,203.56,24.5726]
[1755924242338,2.75,203.77,203.57,24.5724]
[1755924243037,2.75,203.77,203.56,24.5735]
[1755924243237,2.7,203.82,203.66,24.5612]
[1755924243631,2.7,203.82,203.69,4.9114]
[1755924243832,2.7,203.82,203.58,35.41417152]
[1755924244338,2.7,203.78,203.6,24.5688]
[1755924244931,7.6095,203.78,203.64,4.9126]
[1755924246038,2.7,203.78,203.58,10.84387152]
[1755924246236,2.7,203.78,203.65,24.5627]
[1755924246531,2.7,203.78,203.65,22.1627]
[1755924246737,138.1,203.85,203.7,24.5566]
[1755924246938,138.1,203.85,203.74,4.9102]
[1755924246939,2.7,203.84,203.74,4.9102]
[1755924248140,2.7,203.84,203.76,4.9097]
[1755924248342,138.1,203.85,203.76,4.9097]
[1755924248740,138.1,203.85,203.78,4.9093]
[1755924249244,330.36,203.88,203.78,4.9093]
[1755924249439,330.36,203.88,203.8,4.9088]
[1755924249748,330.36,203.88,203.74,24.5517]
[1755924250844,330.36,203.88,203.68,10.84387152]
[1755924251048,2.7,203.92,203.74,24.5515]
[1755924251247,2.7,203.92,203.75,24.5501]
[1755924251443,2.7,203.92,203.75,24.1401]
[1755924251645,2.7,203.92,203.79,4.909]
[1755924251840,7.6061,203.92,203.79,2.819]
[1755924252242,2.7,203.97,203.81,24.543]
[1755924252446,2.7,203.97,203.77,24.5472]
[1755924252753,2.7,203.97,203.81,4.9085]
[1755924252949,2.7,203.97,203.79,24.5455]
[1755924253449,2.7,203.97,203.85,4.9076]
[1755924254149,2.7,203.97,203.83,24.5409]
[1755924254150,2.7,203.97,203.87,4.9071]
[1755924254844,2.7,203.97,203.89,4.9066]
[1755924255449,156.97519487,203.98,203.89,4.9066]
[1755924255952,2.7,203.97,203.82,24.5422]
[1755924256444,2.7,203.97,203.86,4.9073]
[1755924256640,2.7,203.97,203.82,24.5422]
[1755924256842,2.7,203.97,203.81,22.0433]
[1755924256843,2.7,203.97,203.83,4.908]
[1755924257041,2.7,203.97,203.77,24.5476]
[1755924257241,3.55363161,203.97,203.77,24.5476]
[1755924257446,0.85363161,203.97,203.77,24.5476]
[1755924257655,2.7,203.96,203.79,24.5458]
[1755924258352,2.7,203.96,203.81,4.9085]
[1755924258546,2.7,203.96,203.8,24.5447]
[1755924258745,4.9053,203.95,203.83,4.9081]
[1755924259142,2.7,203.96,203.83,4.9081]
[1755924259348,7.6051,203.96,203.83,4.9081]
[1755924259746,2.7,203.96,203.74,24.5511]
[1755924259956,2.7,203.93,203.75,24.5507]
[1755924260252,2.7,203.93,203.81,4.9086]
[1755924260855,7.6058,203.93,203.81,4.9086]
[1755924261243,2.7,203.93,203.83,4.9081]
[1755924261950,2.7,203.93,203.8,24.5445]
[1755924261951,7.6058,203.93,203.8,4.9087]
[1755924262147,2.7,203.93,203.75,24.5507]
[1755924262350,2.7,203.93,203.81,4.9086]
[1755924262651,2.7,203.93,203.75,31.07428301]
[1755924263146,0.03333904,203.86,203.85,0.03216394]
[1755924263553,2.7,203.93,203.85,0.03216394]
[1755924263746,2.7,203.93,203.85,4.93976394]
[1755924264054,0.03271691,203.88,203.85,4.93976394]
[1755924264548,1.691e-05,203.88,203.85,4.93976394]
[1755924265257,1.691e-05,203.88,203.85,29.47816394]
[1755924266253,1.691e-05,203.88,203.85,4.93976394]
[1755924266448,1.691e-05,203.88,203.85,2.43976394]
[1755924267053,1.691e-05,203.88,203.85,26.97846394]
[1755924268355,1.691e-05,203.88,203.87,4.9072]
[1755924269052,1.691e-05,203.88,203.87,2.4072]
[1755924271256,1.691e-05,203.88,203.87,6.70357384]
[1755924272452,1.691e-05,203.88,203.87,2.4072]
[1755924275853,1.691e-05,203.88,203.87,2.0172]
[1755924276755,19.13519487,203.98,203.95,4.9051]
[1755924276962,19.13519487,203.98,203.91,24.5303]
[1755924277553,19.13519487,203.98,203.92,24.5302]
[1755924278156,19.13519487,203.98,203.96,4.905]
[1755924278457,19.13519487,203.98,203.88,137.48]
[1755924278663,19.13519487,203.98,203.88,24.5343]
[1755924278864,19.13519487,203.98,203.89,4.30611949]
[1755924279056,19.13519487,203.98,203.88,24.5343]
[1755924279257,19.13519487,203.98,203.89,4.3054759]
[1755924279559,19.13519487,203.98,203.96,4.905]
[1755924279959,19.13519487,203.98,203.91,24.5307]
[1755924280265,19.13519487,203.98,203.96,4.9051]
[1755924280858,19.13519487,203.98,203.93,4.9055]
[1755924281062,2.76,203.97,203.93,4.9055]
[1755924281459,10.73549487,203.98,203.96,4.9049]
[1755924282067,1.81919487,203.98,203.96,4.9049]
[1755924282263,9.487e-05,204.0,203.99,4.9043]
[1755924282461,2.76,204.11,203.99,4.9043]
[1755924282462,2.76,204.11,203.99,12.6844936]
[1755924282663,2.76,204.11,204.0,33.31680386]
[1755924283565,2.76,204.11,204.0,24.5195]
[1755924283969,2.76,204.2,204.08,24.5109]
[1755924284267,2.76,204.2,204.09,33.29821276]
[1755924284468,2.76,204.2,204.13,4.9009]
[1755924284763,2.76,204.2,204.14,4.2999167]
[1755924284969,2.76,204.19,204.1,4.9017]
[1755924285170,2.76,204.19,204.11,4.30154188]
[1755924285364,2.76,204.19,204.04,24.5153]
[1755924285668,2.76,204.19,204.09,4.9017]
[1755924286463,2.76,204.19,204.08,24.5107]
[1755924286664,0.15,204.23,204.09,8.76186547]
[1755924286865,0.15,204.23,204.1,39.79394848]
[1755924287065,0.15,204.23,204.11,4.29492308]
[1755924287262,0.15,204.23,204.1,31.03208301]
[1755924287263,0.15,204.23,204.14,4.9005]
[1755924287662,0.15,204.23,204.1,6.52358301]
[1755924287867,0.15,204.23,204.13,4.9008]
[1755924288264,0.15,204.23,204.1,6.52358301]
[1755924288473,0.15,204.23,204.15,24.5025]
[1755924288671,0.15,204.23,204.16,4.28767151]
[1755924288968,0.15,204.23,204.17,4.28699251]
[1755924289274,0.15,204.23,204.13,24.5043]
[1755924289473,0.15,204.23,204.14,8.74545559]
[1755924289765,0.15,204.23,204.15,28.78844473]
[1755924289966,0.15,204.23,204.11,24.5074]
[1755924290376,0.15,204.23,204.12,28.79422372]
[1755924290666,2.76,204.33,204.13,4.28802372]
[1755924290871,2.76,204.33,204.14,12.61222005]
[1755924291174,9.28358301,204.32,204.15,4.28802372]
[1755924291367,2.76,204.31,204.16,4.28802372]
[1755924291563,2.76,204.31,204.15,24.5025]
[1755924291770,2.76,204.31,204.1,24.5078]
[1755924291968,2.76,204.27,204.11,8.76843313]
[1755924292165,2.76,204.27,204.12,4.3083191]
[1755924292370,2.76,204.27,204.1,24.5078]
[1755924292571,2.76,204.27,204.11,4.30790596]
[1755924292762,2.76,204.27,204.12,4.30790596]
[1755924292965,2.76,204.27,204.1,24.5078]
[1755924293269,2.76,204.27,204.15,4.9003]
[1755924293464,2.76,204.27,204.15,2.4003]
[1755924294173,2.76,204.27,204.11,24.5074]
[1755924294369,2.76,204.27,204.06,245.1242]
[1755924294370,2.76,204.33,204.13,6.52358301]
[1755924294568,2.76,204.38,204.21,24.4945]
[1755924295070,2.76,204.38,204.25,24.4906]
[1755924295471,2.76,204.45,204.25,6.52358301]
[1755924295668,329.44,204.49,204.3,6.52358301]
[1755924298274,329.44,204.49,204.29,286.63865736]
[1755924298470,4.914,204.59,204.29,286.63865736]
[1755924298777,4.914,204.57,204.34,10.72991306]
[1755924299382,2.76,204.54,204.29,160.14857042]
[1755924299571,2.76,204.54,204.31,137.22]
[1755924300175,4.914,204.55,204.29,149.41865736]
[1755924300375,4.914,204.55,204.34,10.72991306]
[1755924300779,2.76,204.54,204.34,137.76]
[1755924301685,2.76,204.54,204.34,148.48991306]
[1755924301983,2.76,204.54,204.33,137.68]
[1755924302176,2.76,204.54,204.33,148.40991306]
[1755924302375,0.03666928,204.46,204.43,10.72991306]
[1755924302571,2.76,204.65,204.44,146.61958811]
[1755924302775,2.76,204.65,204.45,14.9739726]
[1755924302976,2.76,204.65,204.41,138.54]
[1755924303172,2.76,204.65,204.42,4.23989209]
[1755924303372,2.76,204.65,204.41,138.54]
[1755924303872,2.76,204.65,204.51,0.03473879]
[1755924304070,138.54,204.64,204.51,0.03473879]
[1755924304278,2.69,204.63,204.41,138.54]
[1755924304679,2.69,204.63,204.55,0.03222415]
[1755924304987,2.69,204.62,204.37,138.63984]
[1755924305285,2.69,204.57,204.37,138.63984]
[1755924305677,2.69,204.57,204.37,149.36975306]
[1755924306281,2.69,204.57,204.37,0.17984]
[1755924306983,2.69,204.57,204.38,4.22234348]
[1755924307179,2.69,204.57,204.37,10.90975306]
[1755924307377,2.69,204.57,204.38,4.21945943]
[1755924307681,2.69,204.57,204.37,10.90975306]
[1755924307982,2.69,204.57,204.38,4.21920567]
[1755924308280,2.69,204.7,204.55,10.72991306]
[1755924308779,165.3242,204.81,204.37,1410.09984]
[1755924308780,2.69,204.78,204.37,1410.09984]
[1755924308977,2.69,204.74,204.48,10.72991306]
[1755924309178,2.69,204.74,204.48,151.72991306]
[1755924309374,2.69,204.72,204.48,10.72991306]
[1755924309576,2.69,204.69,204.43,151.68991306]
[1755924309781,141.04,204.68,204.43,151.76991306]
[1755924310082,2.69,204.66,204.43,151.76991306]
[1755924310482,2.69,204.66,204.48,10.72991306]
[1755924310682,2.69,204.73,204.49,4.20527454]
[1755924310881,2.69,204.73,204.48,10.72991306]
[1755924311078,2.69,204.73,204.49,4.20468892]
[1755924311278,2.69,204.73,204.52,10.72991306]
[1755924311475,2.69,204.7,204.44,10.72991306]
[1755924311675,24.4467,204.62,204.37,0.17984]
[1755924311880,2.69,204.62,204.37,141.77984]
[1755924312281,7.5794,204.62,204.37,141.73984]
[1755924312483,2.69,204.61,204.37,141.73984]
[1755924312683,2.69,204.61,204.41,10.72991306]
[1755924313188,2.69,204.7,204.41,10.72991306]
[1755924313586,2.69,204.7,204.37,141.73984]
[1755924313785,2.69,204.7,204.46,10.72991306]
[1755924314689,13.41991306,204.7,204.42,10.72991306]
[1755924314990,2.69,204.69,204.43,141.46]
[1755924315290,2.69,204.67,204.44,141.46]
[1755924315492,2.69,204.67,204.42,10.72991306]
[1755924315690,35.16681306,204.7,204.37,10.90975306]
[1755924315691,2.69,204.64,204.37,10.90975306]
[1755924316288,2.69,204.64,204.42,10.72991306]
[1755924316484,2.69,204.77,204.47,10.72991306]
[1755924316891,4.8872,204.71,204.47,152.18991306]
[1755924317087,2.69,204.7,204.47,152.18991306]
[1755924317492,2.69,204.7,204.52,10.72991306]
[1755924317990,2.69,204.8,204.57,10.72991306]
[1755924318294,2.69,204.78,204.51,10.72991306]
[1755924318490,2.69,204.75,204.51,10.72991306]
[1755924319292,2.69,204.75,204.56,10.72991306]
[1755924321497,10.72991306,204.88,204.61,10.72991306]
[1755924321797,333.634,204.92,204.66,10.72991306]
[1755924321798,4.914,204.92,204.66,10.72991306]
[1755924322095,2.69,204.91,204.71,10.72991306]
[1755924323995,7.604,204.99,204.76,10.72991306]
[1755924324897,7.604,204.99,204.81,10.72991306]
[1755924324898,2.69,204.99,204.81,10.72991306]
[1755924325097,19.13519487,205.04,204.81,10.72991306]
[1755924325693,19.13519487,205.04,204.82,149.22]
[1755924326197,19.13519487,205.04,204.86,10.72991306]
[1755924327396,19.13519487,205.04,204.81,10.72991306]
[1755924327700,2.69,205.02,204.78,10.72991306]
[1755924328103,2.69,205.02,204.76,146.30478409]
[1755924328398,2.69,204.98,204.76,146.30478409]
[1755924328600,10.72991306,204.94,204.76,146.30478409]
[1755924328800,148.68,205.01,204.65,148.68]
[1755924328801,2.69,204.88,204.65,148.68]
[1755924328996,10.72991306,204.84,204.57,10.72991306]
[1755924329196,29.3086,204.81,204.57,10.72991306]
[1755924329501,2.69,204.78,204.57,10.72991306]
[1755924330796,2.69,204.78,204.62,10.72991306]
[1755924331000,2.69,204.86,204.62,10.72991306]
[1755924331399,2.69,204.86,204.67,10.72991306]
[1755924332000,2.69,204.84,204.57,339.10991306]
[1755924332904,2.69,204.82,204.57,339.10991306]
[1755924333399,2.69,204.82,204.62,10.72991306]
[1755924336108,2.69,204.82,204.59,10.72991306]
[1755924336502,13.28991306,204.8,204.57,328.38]
[1755924336803,2.56,204.78,204.54,10.72991306]